bitfinex/quotes_BTCUSD_20230906
["timestamp","ask_amount","ask_price","bid_price","bid_amount"]
[1694022066373,0.0207,25725.0,25724.0,0.44807202]
[1694022066642,0.0207,25725.0,25724.0,0.43307202]
[1694022066845,0.0207,25725.0,25724.0,0.71661572]
[1694022067053,0.0207,25725.0,25724.0,0.43307202]
[1694022067269,0.0207,25725.0,25724.0,0.44807202]
[1694022067689,0.22219403,25725.0,25724.0,0.44807202]
[1694022068324,0.99964703,25725.0,25724.0,0.44807202]
[1694022068767,0.798153,25725.0,25724.0,0.44807202]
[1694022068980,2.56643788,25725.0,25724.0,0.44807202]
[1694022070251,2.353059,25725.0,25724.0,0.44807202]
[1694022070886,0.08,25718.0,25708.0,1.555909]
[1694022071113,0.02,25721.0,25709.0,0.48664527]
[1694022071114,0.1617,25710.0,25709.0,0.48664527]
[1694022071325,0.28025067,25710.0,25709.0,0.48664527]
[1694022072144,0.1617,25710.0,25709.0,0.48664527]
[1694022072731,0.40541542,25710.0,25709.0,0.48664527]
[1694022072932,0.40541542,25710.0,25709.0,0.49364527]
[1694022073158,0.24371542,25710.0,25709.0,0.49364527]
[1694022075974,1.79952942,25710.0,25709.0,0.49364527]
[1694022077070,1.02162242,25710.0,25709.0,0.49364527]
[1694022077471,1.18332242,25710.0,25709.0,0.49364527]
[1694022077673,1.18332242,25710.0,25709.0,0.107]
[1694022077674,2.495421,25710.0,25709.0,0.107]
[1694022078029,2.495421,25710.0,25709.0,0.007]
[1694022078235,2.75941213,25710.0,25709.0,0.007]
[1694022078654,2.75941213,25710.0,25709.0,0.005]
[1694022078869,2.75941213,25710.0,25703.0,0.36]
[1694022079074,2.78741213,25710.0,25709.0,0.002]
[1694022079282,2.85141213,25710.0,25709.0,0.001]
[1694022079524,2.85141213,25710.0,25704.0,0.38664527]
[1694022079525,2.575421,25710.0,25704.0,0.38664527]
[1694022079768,2.603421,25710.0,25709.0,0.002]
[1694022080002,2.527421,25710.0,25709.0,0.001]
[1694022080208,2.594421,25710.0,25709.0,0.001]
[1694022080880,2.587421,25710.0,25709.0,0.001]
[1694022081279,2.575421,25710.0,25700.0,0.3]
[1694022081483,0.1617,25705.0,25701.0,0.48664527]
[1694022081686,0.89664567,25704.0,25702.0,0.3]
[1694022081917,1.67474067,25704.0,25703.0,0.1]
[1694022082138,2.334285,25704.0,25703.0,0.1]
[1694022082351,2.495985,25704.0,25703.0,0.1]
[1694022082820,2.497985,25704.0,25703.0,0.1]
[1694022083035,2.495985,25704.0,25703.0,0.1]
[1694022083266,2.621925,25704.0,25703.0,0.09990833]
[1694022083474,2.627925,25704.0,25703.0,0.09990833]
[1694022083684,2.6711632,25704.0,25703.0,0.09990833]
[1694022084111,2.6941632,25704.0,25703.0,0.10190833]
[1694022084787,2.6971632,25704.0,25703.0,0.10190833]
[1694022085287,2.6941632,25704.0,25703.0,0.10190833]
[1694022085548,2.6941632,25704.0,25703.0,0.09990833]
[1694022085549,2.6741632,25704.0,25703.0,0.09990833]
[1694022086409,2.6801632,25704.0,25703.0,0.09990833]
[1694022089684,2.6801632,25704.0,25703.0,0.4865536]
[1694022089914,0.009,25704.0,25703.0,2.05044184]
[1694022090142,0.009,25704.0,25703.0,4.30631802]
[1694022090401,0.009,25704.0,25703.0,4.63577991]
[1694022090650,0.009,25704.0,25703.0,4.62377991]
[1694022090896,0.009,25704.0,25703.0,4.62365991]
[1694022091171,0.009,25704.0,25703.0,4.60421991]
[1694022091421,0.857803,25714.0,25705.0,0.4118]
[1694022091422,0.08,25714.0,25705.0,0.4118]
[1694022091630,0.27869015,25712.0,25708.0,0.38664527]
[1694022091841,0.27869015,25712.0,25709.0,0.15465811]
[1694022092051,0.27869015,25712.0,25710.0,0.38664527]
[1694022092304,1.05654015,25712.0,25710.0,0.38664527]
[1694022092514,0.77785,25712.0,25710.0,0.38664527]
[1694022092726,0.29355052,25711.0,25710.0,0.38664527]
[1694022093172,0.001,25712.0,25710.0,0.38664527]
[1694022093386,0.3497837,25714.0,25710.0,0.45660527]
[1694022093597,0.001,25712.0,25710.0,0.55330338]
[1694022093813,0.001,25712.0,25710.0,0.39864527]
[1694022094253,1.77424213,25712.0,25710.0,0.39864527]
[1694022094689,1.77524213,25712.0,25710.0,0.41264527]
[1694022094916,0.001,25712.0,25710.0,0.40064527]
[1694022095126,0.002,25711.0,25710.0,0.42164527]
[1694022095791,0.001,25712.0,25710.0,0.40064527]
[1694022096004,0.002,25712.0,25710.0,0.48524527]
[1694022096248,0.001,25712.0,25710.0,0.46692527]
[1694022096434,1.86958358,25714.0,25710.0,0.45396527]
[1694022096638,0.06726155,25713.0,25710.0,0.38664527]
[1694022096853,0.002,25711.0,25710.0,0.40764527]
[1694022097946,1.555715,25712.0,25710.0,0.38664527]
[1694022098178,0.779877,25711.0,25710.0,0.40964527]
[1694022098391,0.002,25711.0,25710.0,0.42164527]
[1694022098637,0.002,25711.0,25710.0,0.40964527]
[1694022098845,0.781877,25711.0,25710.0,0.43064527]
[1694022099057,1.557754,25711.0,25710.0,0.021]
[1694022099269,1.557754,25711.0,25710.0,0.035]
[1694022099517,3.20898057,25711.0,25710.0,0.035]
[1694022099736,3.37068057,25711.0,25710.0,0.035]
[1694022100176,4.133085,25711.0,25710.0,0.035]
[1694022100391,4.15300041,25711.0,25710.0,0.035]
[1694022100605,4.15300041,25711.0,25710.0,0.021]
[1694022101079,4.15500041,25711.0,25710.0,0.044]
[1694022101295,4.15300041,25711.0,25710.0,0.023]
[1694022101514,0.06,25710.0,25702.0,0.2102]
[1694022101736,0.1617,25707.0,25703.0,0.38664527]
[1694022101953,1.90400448,25706.0,25703.0,0.38664527]
[1694022102138,2.68203848,25706.0,25704.0,0.02576002]
[1694022102375,2.56348781,25706.0,25704.0,0.02576002]
[1694022102573,2.56348781,25706.0,25703.0,0.38664527]
[1694022103021,0.1617,25704.0,25701.0,0.2102]
[1694022103207,1.556238,25703.0,25702.0,0.38664527]
[1694022103485,0.778119,25703.0,25702.0,0.38664527]
[1694022104108,1.556238,25703.0,25702.0,0.38664527]
[1694022104745,1.7404122,25703.0,25702.0,0.38664527]
[1694022105190,1.7404122,25703.0,25702.0,0.39164527]
[1694022105614,1.7404122,25703.0,25702.0,0.39564527]
[1694022105829,2.5185312,25703.0,25702.0,0.009]
[1694022106044,3.172476,25703.0,25702.0,0.009]
[1694022106262,3.212476,25703.0,25702.0,0.009]
[1694022106687,2.66864408,25703.0,25702.0,0.009]
[1694022106908,2.66864408,25703.0,25697.0,0.07242]
[1694022107156,0.37659941,25702.0,25698.0,0.38664527]
[1694022107383,1.93294141,25702.0,25698.0,0.41252261]
[1694022107593,1.81439074,25702.0,25698.0,0.41252261]
[1694022107807,2.75046974,25702.0,25698.0,0.41252261]
[1694022108019,2.75046974,25702.0,25699.0,0.1]
[1694022108227,0.09634874,25702.0,25700.0,0.38664527]
[1694022108450,0.09634874,25702.0,25701.0,0.1]
[1694022108672,0.09634874,25702.0,25701.0,0.48664527]
[1694022108885,0.10834874,25702.0,25701.0,0.48664527]
[1694022109306,0.12134874,25702.0,25701.0,0.48664527]
[1694022109528,0.88649774,25702.0,25701.0,0.48664527]
[1694022109743,0.795149,25702.0,25701.0,0.48664527]
[1694022110173,1.561298,25702.0,25701.0,0.48664527]
[1694022110604,1.573298,25702.0,25701.0,0.48764527]
[1694022111079,1.556298,25702.0,25701.0,0.1]
[1694022111575,0.003,25702.0,25701.0,0.48664527]
[1694022112278,0.008,25702.0,25701.0,0.48664527]
[1694022112514,0.003,25702.0,25701.0,0.48664527]
[1694022112932,0.004,25702.0,25701.0,0.49964527]
[1694022113139,0.85303035,25702.0,25701.0,0.49964527]
[1694022114174,0.85003035,25702.0,25701.0,0.49964527]
[1694022114583,0.07188135,25702.0,25701.0,0.49964527]
[1694022115200,0.85303035,25702.0,25701.0,0.49964527]
[1694022115404,0.85303035,25702.0,25701.0,0.52549587]
[1694022115609,0.85003035,25702.0,25701.0,0.52549587]
[1694022115815,0.85103035,25702.0,25701.0,0.53949587]
[1694022119815,1.62917935,25702.0,25701.0,0.53949587]
[1694022120019,2.40732835,25702.0,25701.0,0.53949587]
[1694022120239,2.77007764,25702.0,25701.0,0.1528506]
[1694022120448,3.56265284,25702.0,25701.0,0.1528506]
[1694022120661,3.56265284,25702.0,25701.0,0.127]
[1694022121084,3.276296,25702.0,25701.0,0.127]
[1694022123778,2.58009273,25702.0,25701.0,0.51364527]
[1694022126225,3.35824173,25702.0,25701.0,0.51364527]
[1694022127144,2.58009273,25702.0,25701.0,0.51364527]
[1694022127370,2.57332662,25702.0,25701.0,0.51364527]
[1694022128344,2.57332662,25702.0,25701.0,0.53959034]
[1694022131355,3.35147562,25702.0,25701.0,0.53959034]
[1694022131553,2.57332662,25702.0,25701.0,0.53959034]
[1694022136037,3.51317562,25702.0,25701.0,0.15294507]
[1694022136451,3.51317562,25702.0,25701.0,0.127]
[1694022138110,3.47277562,25702.0,25701.0,0.127]
[1694022138730,3.22912989,25702.0,25701.0,0.127]
[1694022138936,3.45485975,25702.0,25701.0,0.127]
[1694022141415,3.45485975,25702.0,25701.0,0.15132281]
[1694022145147,3.54804556,25702.0,25701.0,0.15132281]
[1694022145593,3.3223157,25702.0,25701.0,0.15132281]
[1694022145848,3.58234809,25702.0,25701.0,0.15132281]
[1694022146096,3.58234809,25702.0,25701.0,0.127]
[1694022146611,3.72212681,25702.0,25701.0,0.127]
[1694022147327,3.72212681,25702.0,25701.0,0.15132281]
[1694022149188,3.628941,25702.0,25701.0,0.15132281]
[1694022149406,3.72234047,25702.0,25701.0,0.15132281]
[1694022149615,3.628941,25702.0,25701.0,0.15132281]
[1694022149869,3.72234087,25702.0,25701.0,0.15132281]
[1694022150081,3.628941,25702.0,25701.0,0.15132281]
[1694022151756,3.81531263,25702.0,25701.0,0.15132281]
[1694022153010,3.67553391,25702.0,25701.0,0.15132281]
[1694022154062,3.90849845,25702.0,25701.0,0.15132281]
[1694022154817,3.67553391,25702.0,25701.0,0.15132281]
[1694022155152,3.72212682,25702.0,25701.0,0.15132281]
[1694022155867,2.94397782,25702.0,25701.0,0.15132281]
[1694022156077,1.39344593,25702.0,25701.0,0.15132281]
[1694022156279,2.17159493,25702.0,25701.0,0.15132281]
[1694022156483,2.94974393,25702.0,25701.0,0.15132281]
[1694022158211,2.71677939,25702.0,25701.0,0.15132281]
[1694022159690,3.49492839,25702.0,25701.0,0.15132281]
[1694022160667,3.234896,25702.0,25701.0,0.15132281]
[1694022161188,3.51445345,25702.0,25701.0,0.127]
[1694022161470,2.94737631,25702.0,25701.0,0.127]
[1694022161745,0.900449,25702.0,25701.0,0.51364527]
[1694022162050,1.678598,25702.0,25701.0,0.51364527]
[1694022162198,1.678598,25702.0,25701.0,0.53796337]
[1694022163182,2.456747,25702.0,25701.0,0.53796337]
[1694022163603,1.678598,25702.0,25701.0,0.53796337]
[1694022164889,2.456747,25702.0,25701.0,0.53796337]
[1694022165104,2.66682319,25702.0,25701.0,0.53796337]
[1694022165541,3.44497219,25702.0,25701.0,0.53796337]
[1694022166766,3.44497219,25702.0,25701.0,0.1513181]
[1694022166767,3.51445345,25702.0,25701.0,0.1513181]
[1694022166994,3.81413334,25702.0,25701.0,0.1513181]
[1694022172794,2.75642689,25702.0,25701.0,0.1513181]
[1694022175029,3.53457589,25702.0,25701.0,0.1513181]
[1694022175914,3.81413334,25702.0,25701.0,0.1513181]
[1694022176859,3.51445345,25702.0,25701.0,0.1513181]
[1694022177103,3.51445345,25702.0,25701.0,0.127]
[1694022177838,3.51445345,25702.0,25701.0,0.15132281]
[1694022178082,3.51445345,25702.0,25701.0,0.127]
[1694022178624,3.51445345,25702.0,25701.0,0.15132281]
[1694022180263,3.51445345,25702.0,25701.0,0.127]
[1694022181953,3.51445345,25702.0,25701.0,0.1513131]
[1694022183475,3.51445345,25702.0,25701.0,0.127]
[1694022183689,3.51445345,25702.0,25701.0,0.1513131]
[1694022183903,3.79896303,25702.0,25701.0,0.1513131]
[1694022184107,3.02081403,25702.0,25701.0,0.1513131]
[1694022184383,2.74125658,25702.0,25701.0,0.1513131]
[1694022186668,3.51940558,25702.0,25701.0,0.1513131]
[1694022191627,3.79896303,25702.0,25701.0,0.1513131]
[1694022191842,3.51445345,25702.0,25701.0,0.1513131]
[1694022192043,3.74792702,25702.0,25701.0,0.1513131]
[1694022192247,3.74792702,25702.0,25701.0,0.127]
[1694022192617,3.74792702,25702.0,25701.0,0.1513131]
[1694022201492,3.46836957,25702.0,25701.0,0.1513131]
[1694022203827,2.69022057,25702.0,25701.0,0.1513131]
[1694022204462,3.46836957,25702.0,25701.0,0.1513131]
[1694022205815,2.69022057,25702.0,25701.0,0.1513131]
[1694022207515,2.69022057,25702.0,25701.0,1.31613737]
[1694022207516,0.001,25702.0,25701.0,1.31613737]
[1694022207804,0.001,25702.0,25701.0,4.50038621]
[1694022208058,0.001,25702.0,25701.0,4.50044621]
[1694022208323,0.001,25702.0,25701.0,4.57412621]
[1694022208607,0.001,25702.0,25701.0,4.70816621]
[1694022208880,0.001,25702.0,25701.0,4.55314621]
[1694022209136,0.002,25702.0,25701.0,4.56416621]
[1694022209506,0.001,25702.0,25701.0,4.54486621]
[1694022209508,0.001,25702.0,25701.0,4.53862621]
[1694022209728,0.23366819,25705.0,25703.0,0.02]
[1694022210101,0.09346508,25705.0,25704.0,2.04282327]
[1694022210496,0.09346508,25705.0,25704.0,2.06710054]
[1694022211724,0.09346508,25705.0,25704.0,2.07910054]
[1694022211936,0.23366819,25706.0,25704.0,2.07910054]
[1694022212146,0.23366819,25706.0,25704.0,2.92366954]
[1694022212368,0.23366819,25706.0,25705.0,1.94276127]
[1694022212574,0.23366819,25706.0,25705.0,2.42940654]
[1694022212978,0.09346508,25706.0,25705.0,2.42940654]
[1694022213217,0.09346508,25706.0,25705.0,0.87329054]
[1694022213444,0.09346508,25706.0,25705.0,0.48664527]
[1694022213685,0.09346508,25706.0,25705.0,0.48764527]
[1694022213912,0.09346508,25706.0,25705.0,0.38764527]
[1694022214141,0.09346508,25706.0,25705.0,0.39064527]
[1694022214372,0.23366819,25706.0,25705.0,0.39064527]
[1694022214800,0.09346508,25706.0,25705.0,0.39064527]
[1694022215452,0.09346508,25706.0,25705.0,1.16870327]
[1694022216299,0.09346508,25706.0,25705.0,1.94676127]
[1694022216838,0.23366819,25707.0,25705.0,1.94676127]
[1694022217081,0.23366819,25707.0,25706.0,0.38664527]
[1694022217713,0.23366819,25708.0,25706.0,2.91493803]
[1694022217921,0.09346508,25708.0,25706.0,2.91493803]
[1694022218126,0.09346508,25708.0,25706.0,2.13691003]
[1694022218342,0.005,25707.0,25706.0,1.94270127]
[1694022218542,0.005,25707.0,25706.0,2.04270127]
[1694022218759,0.005,25707.0,25706.0,2.96072927]
[1694022218970,0.006,25707.0,25706.0,4.28653727]
[1694022219180,0.006,25707.0,25706.0,4.28707727]
[1694022219382,0.006,25707.0,25706.0,4.63720254]
[1694022219635,0.001,25707.0,25706.0,4.67570254]
[1694022219851,0.09346508,25712.0,25708.0,0.02]
[1694022220056,0.96873555,25713.0,25709.0,2.84173827]
[1694022220272,1.88676266,25713.0,25709.0,2.99639638]
[1694022220489,0.21585131,25712.0,25710.0,0.02596042]
[1694022220707,0.99369931,25712.0,25711.0,0.38664527]
[1694022221346,0.21585131,25712.0,25711.0,0.38664527]
[1694022221572,0.99869731,25712.0,25711.0,0.38664527]
[1694022222451,2.338538,25712.0,25711.0,0.38664527]
[1694022222809,2.333538,25712.0,25711.0,0.38664527]
[1694022223243,2.338538,25712.0,25711.0,0.38664527]
[1694022223653,2.333538,25712.0,25711.0,0.38664527]
[1694022223863,2.333538,25712.0,25711.0,0.38764527]
[1694022224308,2.333538,25712.0,25711.0,0.39064527]
[1694022224948,1.555692,25712.0,25711.0,0.39064527]
[1694022225908,2.40696151,25712.0,25711.0,0.39064527]
[1694022226143,3.232684,25712.0,25711.0,0.004]
[1694022226796,3.232684,25712.0,25711.0,0.02997041]
[1694022227029,3.32614908,25712.0,25711.0,0.02997041]
[1694022227238,3.32614908,25712.0,25711.0,0.02597041]
[1694022227449,3.32614908,25712.0,25711.0,0.02997041]
[1694022227450,3.33314908,25712.0,25711.0,0.02997041]
[1694022227656,3.61856908,25712.0,25711.0,0.004]
[1694022227862,3.61856908,25712.0,25711.0,0.002]
[1694022228067,3.61856908,25712.0,25711.0,0.004]
[1694022229194,3.33314908,25712.0,25711.0,0.004]
[1694022229398,3.5726576,25712.0,25711.0,0.002]
[1694022229846,3.5796576,25712.0,25711.0,0.004]
[1694022231137,3.5796576,25712.0,25711.0,0.02997041]
[1694022231766,3.5796576,25712.0,25711.0,0.004]
[1694022232790,3.5796576,25712.0,25711.0,0.02997041]
[1694022233377,3.5796576,25712.0,25711.0,0.004]
[1694022234665,3.5796576,25712.0,25711.0,0.02997041]
[1694022234869,3.5796576,25712.0,25711.0,0.004]
[1694022236221,3.71986071,25712.0,25711.0,0.004]
[1694022236691,3.77826871,25712.0,25711.0,0.004]
[1694022238016,3.53176019,25712.0,25711.0,0.02997041]
[1694022238224,4.01907935,25712.0,25711.0,0.02997041]
[1694022238436,4.13214068,25712.0,25711.0,0.004]
[1694022239278,3.89845505,25712.0,25711.0,0.004]
[1694022239495,3.89845505,25712.0,25711.0,0.002]
[1694022239704,3.92145505,25712.0,25711.0,0.004]
[1694022239910,3.92145505,25712.0,25702.0,0.2215]
[1694022239911,0.08,25710.0,25702.0,0.2215]
[1694022240094,0.1213,25705.0,25703.0,0.38664527]
[1694022240350,1.556178,25704.0,25703.0,0.38664527]
[1694022240558,2.334267,25704.0,25703.0,0.38664527]
[1694022240797,2.55419947,25704.0,25703.0,0.38664527]
[1694022241842,2.55419947,25704.0,25703.0,0.41164527]
[1694022241843,2.55619947,25704.0,25703.0,0.41164527]
[1694022242903,2.55619947,25704.0,25703.0,0.43264527]
[1694022243814,2.55619947,25704.0,25703.0,0.41164527]
[1694022244048,2.55819947,25704.0,25703.0,0.43664527]
[1694022245460,2.54433349,25704.0,25703.0,0.43664527]
[1694022245720,2.53346101,25704.0,25703.0,0.43664527]
[1694022245971,2.51957101,25704.0,25703.0,0.43664527]
[1694022246212,2.24407854,25704.0,25703.0,0.43664527]
[1694022246429,1.45116642,25704.0,25703.0,0.43664527]
[1694022246666,1.44421135,25704.0,25703.0,0.43664527]
[1694022247334,1.43724635,25704.0,25703.0,0.43664527]
[1694022247551,1.43550435,25704.0,25703.0,0.43664527]
[1694022248429,1.43532975,25704.0,25703.0,0.43664527]
[1694022250328,1.43532975,25704.0,25703.0,0.46261568]
[1694022251868,0.25164079,25706.0,25703.0,0.46261568]
[1694022252074,0.09321411,25714.0,25713.0,0.02]
[1694022252339,0.09321233,25716.0,25715.0,0.02]
[1694022252550,0.23303528,25721.0,25720.0,0.02]
[1694022252768,0.09320613,25723.0,25721.0,0.02]
[1694022252981,0.23291732,25724.0,25722.0,1.676388]
[1694022253200,0.23291732,25724.0,25723.0,0.1413]
[1694022253416,0.25261732,25725.0,25723.0,2.581362]
[1694022253636,0.0197,25725.0,25724.0,0.1213]
[1694022253853,0.0197,25725.0,25724.0,1.676268]
[1694022254063,0.0197,25725.0,25724.0,1.71115987]
[1694022254276,0.0197,25725.0,25724.0,1.71157987]
[1694022254693,0.0197,25725.0,25724.0,2.48594387]
[1694022254904,0.0197,25725.0,25724.0,2.51554387]
[1694022255116,0.0197,25725.0,25724.0,2.51206387]
[1694022255377,0.0147,25725.0,25724.0,2.51776387]
[1694022255577,0.0147,25725.0,25724.0,1.73715987]
[1694022255786,0.0147,25725.0,25724.0,0.61386527]
[1694022256009,0.0147,25725.0,25724.0,0.40064527]
[1694022256257,0.0147,25725.0,25724.0,0.38664527]
[1694022256496,0.0147,25725.0,25724.0,0.41164527]
[1694022256957,0.0147,25725.0,25724.0,0.53294527]
[1694022257169,0.0147,25725.0,25724.0,0.50794527]
[1694022257374,0.0147,25725.0,25724.0,0.59534065]
[1694022257585,0.0147,25725.0,25724.0,0.62034065]
[1694022257814,0.0147,25725.0,25724.0,0.55794527]
[1694022258021,0.0147,25725.0,25724.0,0.53294527]
[1694022258235,0.0147,25725.0,25724.0,0.50794527]
[1694022258443,0.0147,25725.0,25724.0,0.52794527]
[1694022259120,0.12882903,25725.0,25724.0,0.52794527]
[1694022259333,0.0147,25725.0,25724.0,2.17627327]
[1694022259559,0.0147,25725.0,25724.0,0.52794527]
[1694022259818,0.0147,25725.0,25724.0,1.32342927]
[1694022260098,0.0147,25725.0,25724.0,2.4476588]
[1694022260372,0.0147,25725.0,25724.0,3.2912628]
[1694022260595,0.0147,25725.0,25724.0,3.2757228]
[1694022260845,0.0147,25725.0,25724.0,2.97035727]
[1694022261113,1.49989594,25725.0,25717.0,0.03072781]
[1694022261380,0.03806988,25712.0,25705.0,0.23169425]
[1694022261626,0.1213,25709.0,25702.0,0.801791]
[1694022261835,0.1213,25703.0,25702.0,0.881803]
[1694022262046,0.07713293,25712.0,25705.0,0.02]
[1694022262251,0.07713293,25712.0,25706.0,0.21021861]
[1694022262252,0.1213,25711.0,25706.0,0.21021861]
[1694022262457,0.1213,25711.0,25705.0,0.07008]
[1694022262670,0.02,25710.0,25705.0,0.06564]
[1694022263006,0.25985067,25710.0,25706.0,0.38664527]
[1694022263194,0.1413,25710.0,25706.0,0.38664527]
[1694022263994,0.1653,25710.0,25706.0,0.38664527]
[1694022264261,0.17219807,25710.0,25707.0,0.1012567]
[1694022264465,0.18919807,25710.0,25708.0,0.38664527]
[1694022264713,0.21319807,25710.0,25708.0,0.38664527]
[1694022264957,0.01653095,25709.0,25707.0,0.1012567]
[1694022265214,0.01653095,25709.0,25707.0,0.48790197]
[1694022265215,0.1213,25708.0,25707.0,0.48790197]
[1694022265470,0.1213,25708.0,25706.0,0.002]
[1694022265471,0.1413,25708.0,25706.0,0.002]
[1694022265725,0.1413,25708.0,25706.0,0.04460397]
[1694022265726,0.1213,25707.0,25706.0,0.04460397]
[1694022265968,0.1213,25707.0,25706.0,0.002]
[1694022266225,0.1413,25708.0,25707.0,0.11486238]
[1694022266728,0.1413,25708.0,25707.0,0.11586238]
[1694022266957,0.02,25708.0,25707.0,0.53131385]
[1694022267171,0.02,25708.0,25707.0,0.53031385]
[1694022268229,0.02,25708.0,25707.0,0.50150765]
[1694022268648,0.02,25708.0,25707.0,0.53031385]
[1694022270819,0.023,25708.0,25707.0,0.53031385]
[1694022272824,0.023,25708.0,25707.0,0.14366858]
[1694022274746,1.740634,25708.0,25707.0,0.0288062]
[1694022275274,0.962667,25708.0,25707.0,0.0288062]
[1694022278789,0.1847,25708.0,25707.0,0.0288062]
[1694022279224,0.962667,25708.0,25707.0,0.0288062]
[1694022280058,0.962667,25708.0,25705.0,0.05135302]
[1694022280059,1.00565662,25708.0,25705.0,0.05135302]
[1694022280291,0.02,25707.0,25705.0,0.05135302]
[1694022280503,0.02,25707.0,25706.0,0.02894926]
[1694022281153,0.02,25707.0,25705.0,0.05135302]
[1694022281435,0.02,25707.0,25705.0,0.05735302]
[1694022281578,0.02,25707.0,25706.0,0.07563144]
[1694022283242,0.021,25707.0,25706.0,0.08463144]
[1694022283530,0.021,25707.0,25706.0,0.09063144]
[1694022283698,0.02,25707.0,25706.0,0.46227671]
[1694022283900,0.04,25707.0,25706.0,0.46427671]
[1694022284102,0.057,25707.0,25706.0,0.46527671]
[1694022284746,0.02,25707.0,25706.0,0.46227671]
[1694022285159,0.031,25707.0,25706.0,0.46327671]
[1694022285367,0.031,25707.0,25706.0,0.46227671]
[1694022285368,0.02,25707.0,25706.0,0.46227671]
[1694022286195,0.028,25707.0,25706.0,0.46327671]
[1694022286609,0.02,25707.0,25706.0,0.46227671]
[1694022286798,0.023,25707.0,25706.0,0.46227671]
[1694022287020,0.023,25707.0,25701.0,0.08]
[1694022287235,0.023,25707.0,25704.0,0.08722495]
[1694022287236,0.11855067,25706.0,25704.0,0.08722495]
[1694022287447,0.02,25706.0,25704.0,0.47387022]
[1694022287663,0.02,25706.0,25705.0,0.04912152]
[1694022288301,0.02,25706.0,25700.0,1.04938]
[1694022288302,0.02,25703.0,25700.0,0.1912]
[1694022288517,0.11855067,25702.0,25701.0,0.38664527]
[1694022288760,0.13855067,25703.0,25701.0,0.38664527]
[1694022288945,0.02,25703.0,25701.0,0.38664527]
[1694022289603,0.02,25702.0,25701.0,0.4927396]
[1694022290081,0.022,25702.0,25701.0,0.41164527]
[1694022290498,0.02,25702.0,25701.0,0.38664527]
[1694022290949,0.02,25702.0,25701.0,0.40164527]
[1694022291400,0.02,25702.0,25701.0,0.38664527]
[1694022291605,0.02,25702.0,25701.0,0.39264527]
[1694022291826,0.02,25702.0,25701.0,0.49960406]
[1694022293318,0.021,25702.0,25701.0,0.50860406]
[1694022295599,0.021,25702.0,25701.0,0.53613352]
[1694022296508,0.021,25702.0,25701.0,0.52529184]
[1694022299338,0.021,25702.0,25701.0,0.62529184]
[1694022302387,0.021,25702.0,25701.0,1.30735373]
[1694022302609,0.001,25702.0,25701.0,1.42865373]
[1694022302850,0.001,25702.0,25701.0,4.03547073]
[1694022303064,0.001,25702.0,25701.0,3.10585173]
[1694022303274,0.001,25702.0,25701.0,3.10675173]
[1694022303502,0.19354803,25709.0,25704.0,0.16]
[1694022303503,0.02,25709.0,25704.0,0.16]
[1694022303723,0.02,25710.0,25708.0,0.1213]
[1694022303945,0.02,25710.0,25709.0,0.66260338]
[1694022304178,0.02,25710.0,25709.0,0.54130338]
[1694022304392,0.02,25710.0,25709.0,0.38664527]
[1694022305071,0.02,25710.0,25709.0,0.45684527]
[1694022305285,0.022,25710.0,25709.0,0.48374527]
[1694022305501,0.022,25710.0,25709.0,0.47540527]
[1694022305741,0.022,25710.0,25709.0,0.47558527]
[1694022305924,0.022,25710.0,25709.0,0.47606527]
[1694022306132,0.022,25710.0,25709.0,0.47624527]
[1694022306346,0.022,25710.0,25709.0,0.47612527]
[1694022306556,0.023,25710.0,25709.0,0.43464527]
[1694022308599,0.023,25710.0,25709.0,0.53613399]
[1694022308803,0.023,25710.0,25709.0,0.52062849]
[1694022309627,0.023,25710.0,25709.0,1.28260227]
[1694022309836,0.023,25710.0,25709.0,1.28692227]
[1694022310032,0.023,25710.0,25709.0,2.06929927]
[1694022310238,0.023,25710.0,25709.0,2.06941927]
[1694022310583,0.023,25710.0,25709.0,2.09850328]
[1694022310792,0.023,25710.0,25709.0,2.09478328]
[1694022310999,0.023,25710.0,25709.0,2.09064328]
[1694022311212,0.023,25710.0,25709.0,2.09070328]
[1694022311438,0.023,25710.0,25709.0,2.09286328]
[1694022311645,0.023,25710.0,25709.0,2.09076328]
[1694022311882,0.023,25710.0,25709.0,2.09538328]
[1694022312094,0.023,25710.0,25709.0,0.56049807]
[1694022313601,0.003,25710.0,25709.0,4.00372799]
[1694022313817,0.003,25710.0,25709.0,4.42780799]
[1694022314042,0.003,25710.0,25709.0,4.42762799]
[1694022314251,0.003,25710.0,25709.0,4.42942799]
[1694022314462,0.003,25710.0,25709.0,4.42924799]
[1694022314672,0.003,25710.0,25709.0,4.42696799]
[1694022314880,0.003,25710.0,25709.0,4.42324799]
[1694022315093,0.003,25710.0,25709.0,4.42048799]
[1694022315304,0.003,25710.0,25709.0,4.42438799]
[1694022315526,0.003,25710.0,25709.0,4.40176799]
[1694022315817,0.003,25710.0,25709.0,4.09349728]
[1694022316027,0.003,25710.0,25709.0,4.09835728]
[1694022316241,0.003,25710.0,25709.0,4.09499728]
[1694022316447,0.003,25710.0,25709.0,4.18880604]
[1694022316677,0.003,25710.0,25709.0,4.47834255]
[1694022316883,0.003,25710.0,25709.0,4.48026255]
[1694022317117,0.003,25710.0,25709.0,4.58854125]
[1694022317322,0.003,25710.0,25709.0,4.20183598]
[1694022317539,0.003,25710.0,25709.0,4.10513728]
[1694022317743,0.003,25710.0,25709.0,4.10555728]
[1694022317962,0.003,25710.0,25709.0,4.09661728]
[1694022318172,0.003,25710.0,25709.0,4.17741445]
[1694022318378,0.003,25710.0,25709.0,3.39431745]
[1694022318595,0.003,25710.0,25709.0,3.39371745]
[1694022318803,0.003,25710.0,25709.0,3.39389745]
[1694022319026,0.003,25710.0,25709.0,3.39203745]
[1694022319230,0.003,25710.0,25709.0,3.39065745]
[1694022319445,0.003,25710.0,25709.0,4.08515728]
[1694022319664,0.003,25710.0,25709.0,3.40483861]
[1694022319869,0.003,25710.0,25709.0,3.31658028]
[1694022320024,0.003,25710.0,25709.0,4.10207728]
[1694022320229,0.003,25710.0,25709.0,4.10111728]
[1694022320661,0.003,25710.0,25709.0,4.10123728]
[1694022320861,0.003,25710.0,25709.0,4.10147728]